fUST/lending_fUST_20241121
["ID","MTS","AMOUNT","RATE_DAILY","PERIOD"]
[342763261,1732119060069,-500.0,0.00027943,2]
[342763262,1732119060078,-500.0,0.00027943,2]
[342763263,1732119060087,-602.90423418,0.00027943,2]
[342763264,1732119060096,-500.0,0.00027943,2]
[342763265,1732119060105,-500.0,0.00027943,2]
[342763266,1732119060115,-500.0,0.00027943,2]
[342763267,1732119060124,-214.2,0.00027943,2]
[342763268,1732119060133,-500.0,0.00027943,2]
[342763269,1732119060143,-209.91,0.00027943,2]
[342763270,1732119060162,-695.65,0.00027943,2]
[342763271,1732119060172,-500.0,0.00027943,2]
[342763272,1732119060182,-591.41,0.00027943,2]
[342763273,1732119060192,-500.0,0.00027943,2]
[342763274,1732119060202,-500.0,0.00027943,2]
[342763275,1732119060212,-500.0,0.00027943,2]
[342763276,1732119060222,-500.0,0.00027943,2]
[342763277,1732119060231,-1402.4,0.00027943,2]
[342763278,1732119060245,-560.1,0.00027943,2]
[342763279,1732119060255,-515.63,0.00027943,2]
[342763280,1732119060265,-771.88,0.00027943,2]
[342763281,1732119060276,-500.0,0.00027943,2]
[342763282,1732119060287,-1712.23,0.00027943,2]
[342763283,1732119060297,-715.1,0.00027944,2]
[342763284,1732119060307,-535.74,0.00027944,2]
[342763285,1732119060317,-684.43,0.00027944,2]
[342763286,1732119060327,-1376.81,0.00027944,2]
[342763287,1732119060337,-936.96,0.00027944,2]
[342763288,1732119060347,-511.35,0.00027944,2]
[342763289,1732119060357,-2637.14,0.00027944,2]
[342763290,1732119060367,-829.25,0.00027944,2]
[342763291,1732119060378,-509.41,0.00027944,2]
[342763292,1732119060388,-672.63,0.00027944,2]
[342763293,1732119060397,-7034.76,0.00027945,2]
[342763294,1732119060407,-1167.56,0.00027945,2]
[342763295,1732119060417,-2386.86,0.00027945,2]
[342763296,1732119060427,-540.69,0.00027945,2]
[342763297,1732119060436,-796.62,0.00027945,2]
[342763298,1732119060446,-2396.96,0.00027945,2]
[342763299,1732119060457,-1074.95,0.00027945,2]
[342763300,1732119060467,-269.46133726,0.00028078,2]
[342763301,1732119060477,-500.0,0.00028173,5]
[342763302,1732119060489,-269.46133726,0.00028205,2]
[342763303,1732119060498,-4140.21,0.00028216,2]
[342763304,1732119060510,-696.54,0.00028216,2]
[342763305,1732119060520,-2107.99,0.00028216,2]
[342763306,1732119060529,-500.0,0.00028217,2]
[342763307,1732119060541,-500.0,0.00028217,2]
[342763308,1732119060552,-500.0,0.00028217,2]
[342763309,1732119060562,-500.0,0.00028217,2]
[342763310,1732119060572,-500.0,0.00028217,2]
[342763311,1732119060581,-695.65,0.00028217,2]
[342763312,1732119060591,-500.0,0.00028217,2]
[342763313,1732119060601,-201.0,0.00028217,2]
[342763314,1732119060611,-500.0,0.00028217,2]
[342763315,1732119060620,-500.0,0.00028217,2]
[342763316,1732119060631,-1402.4,0.00028217,2]
[342763317,1732119060640,-560.1,0.00028217,2]
[342763318,1732119060650,-515.63,0.00028217,2]
[342763319,1732119060659,-771.88,0.00028217,2]
[342763320,1732119060669,-500.0,0.00028217,2]
[342763321,1732119060678,-1712.23,0.00028217,2]
[342763322,1732119060688,-715.1,0.00028218,2]
[342763323,1732119060697,-535.74,0.00028218,2]
[342763324,1732119060707,-684.43,0.00028218,2]
[342763325,1732119060811,-1376.81,0.00028218,2]
[342763326,1732119060821,-936.96,0.00028218,2]
[342763327,1732119060832,-2637.14,0.00028218,2]
[342763328,1732119060843,-829.25,0.00028218,2]
[342763329,1732119060853,-509.41,0.00028218,2]
[342763330,1732119060862,-672.63,0.00028218,2]
[342763331,1732119060871,-7034.92,0.00028219,2]
[342763332,1732119060881,-1167.58,0.00028219,2]
[342763333,1732119060891,-2387.02,0.00028219,2]
[342763334,1732119060901,-540.85,0.00028219,2]
[342763335,1732119060911,-796.77,0.00028219,2]
[342763336,1732119060921,-2397.06,0.00028219,2]
[342763337,1732119060930,-1075.15,0.00028219,2]
[342763338,1732119060939,-500.0,0.00028297,5]
[342763339,1732119060949,-500.0,0.00028297,5]
[342763340,1732119060959,-6069.2480266,0.00028307,2]
[342763341,1732119060968,-269.46133726,0.00028332,2]
[342763342,1732119060978,-269.46133726,0.0002846,2]
[342763343,1732119060991,-4140.21,0.0002849,2]
[342763344,1732119061001,-696.54,0.0002849,2]
[342763345,1732119061010,-2107.99,0.0002849,2]
[342763346,1732119061020,-601.02,0.00028491,2]
[342763347,1732119061030,-500.0,0.00028491,2]
[342763348,1732119061039,-500.0,0.00028491,2]
[342763349,1732119061049,-695.65,0.00028491,2]
[342763350,1732119061059,-299.36,0.00028491,2]
[342763351,1732119061069,-500.0,0.00028491,2]
[342763352,1732119061079,-500.0,0.00028491,2]
[342763353,1732119061088,-1402.4,0.00028491,2]
[342763354,1732119061098,-560.1,0.00028491,2]
[342763355,1732119061107,-515.63,0.00028491,2]
[342763356,1732119061117,-771.88,0.00028491,2]
[342763357,1732119061126,-500.0,0.00028491,2]
[342763358,1732119061135,-1712.23,0.00028491,2]
[342763359,1732119061144,-715.1,0.00028492,2]
[342763360,1732119061154,-535.93,0.00028492,2]
[342763361,1732119061164,-684.55,0.00028492,2]
[342763362,1732119061173,-1376.87,0.00028492,2]
[342763363,1732119061182,-937.11,0.00028492,2]
[342763364,1732119061192,-2637.22000001,0.00028492,2]
[342763365,1732119061202,-829.38,0.00028492,2]
[342763366,1732119061211,-509.45,0.00028492,2]
[342763367,1732119061221,-672.75,0.00028492,2]
[342763368,1732119061230,-10034.76,0.000285,14]
[342763369,1732119061242,-500.0,0.00028572,2]
[342763370,1732119061251,-269.46133726,0.00028587,2]
[342763371,1732119061261,-3546.03,0.000286,30]
[342763372,1732119061270,-2244.52375826,0.00028636,2]
[342763373,1732119061280,-18796.8394584,0.00028636,2]
[342763374,1732119061290,-330.0,0.00028636,2]
[342763375,1732119061300,-500.0,0.00028656,2]
[342763376,1732119061309,-500.0,0.00028699,2]
[342763377,1732119061318,-500.0,0.00028705,2]
[342763378,1732119061328,-500.0,0.00028712,10]
[342763379,1732119061337,-269.46133726,0.00028714,2]
[342763380,1732119061348,-500.0,0.00028715,2]
[342763381,1732119061358,-1000.0,0.00028721,5]
[342763382,1732119061368,-177.35875335,0.00028725,2]
[342763383,1732119061378,-201.60331711,0.00028735,2]
[342763384,1732119061387,-500.0,0.00028736,2]
[342763385,1732119061397,-500.0,0.00028736,2]
[342763386,1732119061406,-500.0,0.00028736,2]
[342763387,1732119061415,-500.0,0.00028736,2]
[342763388,1732119061424,-500.0,0.00028736,2]
[342763389,1732119061433,-500.8523492,0.00028736,2]
[342763390,1732119061443,-500.0,0.00028736,2]
[342763391,1732119061456,-500.0,0.00028736,2]
[342763392,1732119061466,-259.81886632,0.00028736,2]
[342763393,1732119061477,-460.56432571,0.00028736,2]
[342763394,1732119061489,-249.34,0.00028736,10]
[342763395,1732119061500,-500.0,0.00028736,10]
[342763396,1732119061510,-500.0,0.00028736,10]
[342763397,1732119061519,-151.0,0.00028739,7]
[342763398,1732119061530,-153.306675,0.00028739,7]
[342763399,1732119061540,-151.0,0.00028739,7]
[342763400,1732119061551,-151.0,0.00028739,7]
[342763401,1732119061561,-151.0,0.00028739,7]
[342763402,1732119061572,-151.0,0.00028739,7]
[342763403,1732119061582,-151.0,0.00028739,7]
[342763404,1732119061592,-151.0,0.00028739,7]
[342763405,1732119061602,-151.0,0.00028739,7]
[342763406,1732119061612,-151.0,0.00028739,7]
[342763407,1732119061622,-151.0,0.00028739,7]
[342763408,1732119061632,-157.318411,0.00028739,7]
[342763409,1732119061642,-151.0,0.00028739,7]
[342763410,1732119061651,-151.0,0.00028739,7]
[342763411,1732119061661,-151.0,0.00028739,7]
[342763412,1732119061671,-151.0,0.00028739,7]
[342763413,1732119061680,-151.0,0.00028739,7]
[342763414,1732119061690,-151.0,0.00028739,7]
[342763415,1732119061699,-151.0,0.00028739,7]
[342763416,1732119061709,-282.789558,0.00028739,7]
[342763417,1732119061719,-282.789558,0.00028739,7]
[342763418,1732119061730,-282.789558,0.00028739,7]
[342763419,1732119061744,-282.789558,0.00028739,7]
[342763420,1732119061754,-282.789558,0.00028739,7]
[342763421,1732119061771,-282.789558,0.00028739,7]
[342763422,1732119061782,-282.789558,0.00028739,7]
[342763423,1732119061792,-282.789558,0.00028739,7]
[342763424,1732119061801,-282.789558,0.00028739,7]
[342763425,1732119061811,-282.789558,0.00028739,7]
[342763426,1732119061821,-282.789558,0.00028739,7]
[342763427,1732119061830,-282.789558,0.00028739,7]
[342763428,1732119061840,-282.789558,0.00028739,7]
[342763429,1732119061850,-151.0,0.00028739,7]
[342763430,1732119061859,-282.789558,0.00028739,7]
[342763431,1732119061868,-151.0,0.00028739,7]
[342763432,1732119061878,-282.789558,0.00028739,7]
[342763433,1732119061887,-151.0,0.00028739,7]
[342763434,1732119061896,-282.789558,0.00028739,7]
[342763435,1732119061906,-151.0,0.00028739,7]
[342763436,1732119061916,-282.789558,0.00028739,7]
[342763437,1732119061926,-151.0,0.00028739,7]
[342763438,1732119061935,-282.789558,0.00028739,7]
[342763439,1732119061946,-151.0,0.00028739,7]
[342763440,1732119061957,-282.789558,0.00028739,7]
[342763441,1732119061967,-282.789568,0.00028739,7]
[342763442,1732119061976,-4140.21,0.00028764,2]
[342763443,1732119061992,-696.54,0.00028764,2]
[342763444,1732119062059,-2107.99,0.00028764,2]
[342763445,1732119062074,-500.0,0.00028765,2]
[342763446,1732119062083,-500.0,0.00028765,2]
[342763447,1732119062093,-695.65,0.00028765,2]
[342763448,1732119062103,-341.32,0.00028765,2]
[342763449,1732119062112,-500.0,0.00028765,2]
[342763450,1732119062122,-1402.4,0.00028765,2]
[342763451,1732119062131,-560.1,0.00028765,2]
[342763452,1732119062141,-515.63,0.00028765,2]
[342763453,1732119062150,-771.88,0.00028765,2]
[342763454,1732119062160,-500.0,0.00028765,2]
[342763455,1732119062170,-1712.23,0.00028765,2]
[342763456,1732119062180,-715.1,0.00028766,2]
[342763457,1732119062189,-200.17913475,0.00028773,5]
[342763458,1732119062198,-151.0,0.00028784,7]
[342763459,1732119062207,-151.0,0.00028784,7]
[342763460,1732119062216,-151.0,0.00028784,7]
[342763461,1732119062225,-151.0,0.00028784,7]
[342763462,1732119062235,-156.600517,0.00028784,7]
[342763463,1732119062250,-151.0,0.00028784,7]
[342763464,1732119062259,-151.0,0.00028784,7]
[342763465,1732119062268,-151.0,0.00028784,7]
[342763466,1732119062279,-151.0,0.00028784,7]
[342763467,1732119062289,-151.0,0.00028784,7]
[342763468,1732119062300,-151.0,0.00028784,7]
[342763469,1732119062310,-151.0,0.00028784,7]
[342763470,1732119062321,-151.0,0.00028784,7]
[342763471,1732119062332,-151.0,0.00028784,7]
[342763472,1732119062343,-243.191172,0.00028784,7]
[342763473,1732119062353,-151.0,0.00028784,7]
[342763474,1732119062364,-151.0,0.00028784,7]
[342763475,1732119062373,-151.0,0.00028784,7]
[342763476,1732119062382,-151.0,0.00028784,7]
[342763477,1732119062392,-151.0,0.00028784,7]
[342763478,1732119062401,-151.0,0.00028784,7]
[342763479,1732119062411,-151.0,0.00028784,7]
[342763480,1732119062420,-151.0,0.00028784,7]
[342763481,1732119062430,-151.0,0.00028784,7]
[342763482,1732119062439,-151.0,0.00028784,7]
[342763483,1732119062449,-151.0,0.00028784,7]
[342763484,1732119062461,-151.0,0.00028784,7]
[342763485,1732119062470,-151.0,0.00028784,7]
[342763486,1732119062480,-151.0,0.00028784,7]
[342763487,1732119062494,-151.0,0.00028784,7]
[342763488,1732119062503,-288.057314,0.00028784,7]
[342763489,1732119062513,-151.0,0.00028784,7]
[342763490,1732119062525,-151.0,0.00028784,7]
[342763491,1732119062535,-230.548136,0.00028784,7]
[342763492,1732119062544,-230.548136,0.00028784,7]
[342763493,1732119062554,-230.548136,0.00028784,7]
[342763494,1732119062563,-230.548136,0.00028784,7]
[342763495,1732119062572,-230.548136,0.00028784,7]
[342763496,1732119062581,-230.548136,0.00028784,7]
[342763497,1732119062590,-230.548136,0.00028784,7]
[342763498,1732119062599,-230.548136,0.00028784,7]
[342763499,1732119062608,-230.548136,0.00028784,7]
[342763500,1732119062618,-230.548136,0.00028784,7]
[342763501,1732119062627,-230.548136,0.00028784,7]
[342763502,1732119062635,-230.548136,0.00028784,7]
[342763503,1732119062644,-230.548136,0.00028784,7]
[342763504,1732119062653,-230.548136,0.00028784,7]
[342763505,1732119062663,-230.548136,0.00028784,7]
[342763506,1732119062672,-230.548136,0.00028784,7]
[342763507,1732119062681,-230.548136,0.00028784,7]
[342763508,1732119062690,-230.548136,0.00028784,7]
[342763509,1732119062699,-230.548136,0.00028784,7]
[342763510,1732119062708,-230.548144,0.00028784,7]
[342763511,1732119062718,-508.385001,0.00028784,7]
[342763512,1732119062727,-508.385001,0.00028784,7]
[342763513,1732119062736,-508.385001,0.00028784,7]
[342763514,1732119062747,-508.385001,0.00028784,7]
[342763515,1732119062756,-508.385001,0.00028784,7]
[342763516,1732119062765,-508.385001,0.00028784,7]
[342763517,1732119062774,-508.385001,0.00028784,7]
[342763518,1732119062783,-508.385001,0.00028784,7]
[342763519,1732119062792,-508.385001,0.00028784,7]
[342763520,1732119062801,-508.385001,0.00028784,7]
[342763521,1732119062810,-508.385001,0.00028784,7]
[342763522,1732119062820,-508.385001,0.00028784,7]
[342763523,1732119062829,-508.385001,0.00028784,7]
[342763524,1732119062838,-508.385001,0.00028784,7]
[342763525,1732119062847,-508.385001,0.00028784,7]
[342763526,1732119062855,-508.385001,0.00028784,7]
[342763527,1732119062865,-508.385001,0.00028784,7]
[342763528,1732119062875,-508.385001,0.00028784,7]
[342763529,1732119062884,-508.385001,0.00028784,7]
[342763530,1732119062893,-508.385005,0.00028784,7]
[342763531,1732119062903,-151.0,0.00028784,7]
[342763532,1732119062912,-151.0,0.00028784,7]
[342763533,1732119062921,-151.0,0.00028784,7]
[342763534,1732119062930,-151.0,0.00028784,7]
[342763535,1732119062939,-151.0,0.00028784,7]
[342763536,1732119062949,-151.0,0.00028784,7]
[342763537,1732119062958,-151.0,0.00028784,7]
[342763538,1732119062969,-151.0,0.00028784,7]
[342763539,1732119062978,-151.0,0.00028784,7]
[342763540,1732119062987,-151.0,0.00028784,7]
[342763541,1732119062999,-151.0,0.00028784,7]
[342763542,1732119063008,-208.659052,0.00028784,7]
[342763543,1732119063017,-207.44520227,0.00028795,2]
[342763544,1732119063026,-151.0,0.00028814,7]
[342763545,1732119063035,-151.0,0.00028814,7]
[342763546,1732119063044,-284.06872,0.00028814,7]
[342763547,1732119063053,-151.0,0.00028814,7]
[342763548,1732119063063,-151.0,0.00028814,7]
[342763549,1732119063072,-151.0,0.00028814,7]
[342763550,1732119063081,-151.0,0.00028814,7]
[342763551,1732119063090,-151.0,0.00028814,7]
[342763552,1732119063099,-151.0,0.00028814,7]
[342763553,1732119063109,-151.0,0.00028814,7]
[342763554,1732119063176,-151.0,0.00028814,7]
[342763555,1732119063187,-151.0,0.00028814,7]
[342763556,1732119063198,-151.0,0.00028814,7]
[342763557,1732119063208,-151.0,0.00028814,7]
[342763558,1732119063217,-237.757432,0.00028814,7]
[342763559,1732119063227,-181.796893,0.00028814,7]
[342763560,1732119063236,-181.796893,0.00028814,7]
[342763561,1732119063248,-181.796893,0.00028814,7]
[342763562,1732119063259,-181.796893,0.00028814,7]
[342763563,1732119063269,-181.796893,0.00028814,7]
[342763564,1732119063279,-181.796893,0.00028814,7]
[342763565,1732119063289,-181.796893,0.00028814,7]
[342763566,1732119063298,-181.796893,0.00028814,7]
[342763567,1732119063308,-181.796893,0.00028814,7]
[342763568,1732119063317,-181.796893,0.00028814,7]
[342763569,1732119063327,-181.796893,0.00028814,7]
[342763570,1732119063337,-181.796893,0.00028814,7]
[342763571,1732119063347,-181.796893,0.00028814,7]
[342763572,1732119063357,-181.796893,0.00028814,7]
[342763573,1732119063367,-181.796893,0.00028814,7]
[342763574,1732119063377,-181.796893,0.00028814,7]
[342763575,1732119063387,-181.796893,0.00028814,7]
[342763576,1732119063397,-181.796893,0.00028814,7]
[342763577,1732119063407,-181.796893,0.00028814,7]
[342763578,1732119063416,-181.796887,0.00028814,7]
[342763579,1732119063426,-151.0,0.00028814,7]
[342763580,1732119063436,-151.0,0.00028814,7]
[342763581,1732119063446,-151.0,0.00028814,7]
[342763582,1732119063458,-151.0,0.00028814,7]
[342763583,1732119063472,-151.0,0.00028814,7]
[342763584,1732119063483,-151.0,0.00028814,7]
[342763585,1732119063496,-151.0,0.00028814,7]
[342763586,1732119063508,-151.0,0.00028814,7]
[342763587,1732119063518,-300.88596,0.00028814,7]
[342763588,1732119063529,-151.0,0.00028814,7]
[342763589,1732119063541,-151.0,0.00028814,7]
[342763590,1732119063552,-151.0,0.00028814,7]
[342763591,1732119063562,-151.0,0.00028814,7]
[342763592,1732119063572,-151.0,0.00028814,7]
[342763593,1732119063582,-151.0,0.00028814,7]
[342763594,1732119063592,-151.0,0.00028814,7]
[342763595,1732119063601,-151.0,0.00028814,7]
[342763596,1732119063611,-151.0,0.00028814,7]
[342763597,1732119063620,-151.0,0.00028814,7]
[342763598,1732119063630,-151.0,0.00028814,7]
[342763599,1732119063640,-151.0,0.00028814,7]
[342763600,1732119063650,-151.0,0.00028814,7]
[342763601,1732119063660,-151.0,0.00028814,7]
[342763602,1732119063670,-151.0,0.00028814,7]
[342763603,1732119063679,-177.386846,0.00028814,7]
[342763604,1732119063690,-151.0,0.00028814,7]
[342763605,1732119063699,-177.386846,0.00028814,7]
[342763606,1732119063712,-151.0,0.00028814,7]
[342763607,1732119063722,-177.386846,0.00028814,7]
[342763608,1732119063732,-177.386846,0.00028814,7]
[342763609,1732119063744,-151.0,0.00028814,7]
[342763610,1732119063754,-177.386846,0.00028814,7]
[342763611,1732119063764,-223.643816,0.00028814,7]
[342763612,1732119063775,-177.386846,0.00028814,7]
[342763613,1732119063786,-177.386846,0.00028814,7]
[342763614,1732119063796,-177.386846,0.00028814,7]
[342763615,1732119063807,-177.386846,0.00028814,7]
[342763616,1732119063818,-177.386846,0.00028814,7]
[342763617,1732119063828,-177.386846,0.00028814,7]
[342763618,1732119063838,-177.386846,0.00028814,7]
[342763619,1732119063848,-177.386846,0.00028814,7]
[342763620,1732119063857,-177.386846,0.00028814,7]
[342763621,1732119063867,-177.386846,0.00028814,7]
[342763622,1732119063877,-177.386846,0.00028814,7]
[342763623,1732119063886,-177.386846,0.00028814,7]
[342763624,1732119063896,-177.386846,0.00028814,7]
[342763625,1732119063906,-177.386846,0.00028814,7]
[342763626,1732119063916,-177.386848,0.00028814,7]
[342763627,1732119063926,-260.259653,0.00028814,7]
[342763628,1732119063935,-260.259653,0.00028814,7]
[342763629,1732119063945,-260.259653,0.00028814,7]
[342763630,1732119063955,-260.259653,0.00028814,7]
[342763631,1732119063965,-260.259653,0.00028814,7]
[342763632,1732119063974,-260.259648,0.00028814,7]
[342763633,1732119063984,-151.0,0.00028814,7]
[342763634,1732119063997,-151.0,0.00028814,7]
[342763635,1732119064006,-151.0,0.00028814,7]
[342763636,1732119064016,-151.0,0.00028814,7]
[342763637,1732119064026,-151.0,0.00028814,7]
[342763638,1732119064035,-151.0,0.00028814,7]
[342763639,1732119064044,-151.0,0.00028814,7]
[342763640,1732119064054,-151.0,0.00028814,7]
[342763641,1732119064064,-283.639078,0.00028814,7]
[342763642,1732119064074,-151.0,0.00028814,7]
[342763643,1732119064084,-151.0,0.00028814,7]
[342763644,1732119064094,-151.0,0.00028814,7]
[342763645,1732119064103,-151.0,0.00028814,7]
[342763646,1732119064113,-151.0,0.00028814,7]
[342763647,1732119064124,-151.0,0.00028814,7]
[342763648,1732119064134,-151.0,0.00028814,7]
[342763649,1732119064143,-151.0,0.00028814,7]
[342763650,1732119064153,-151.0,0.00028814,7]
[342763651,1732119064163,-151.0,0.00028814,7]
[342763652,1732119064173,-151.0,0.00028814,7]
[342763653,1732119064183,-151.0,0.00028814,7]
[342763654,1732119064193,-151.0,0.00028814,7]
[342763655,1732119064258,-151.0,0.00028814,7]
[342763656,1732119064269,-151.0,0.00028814,7]
[342763657,1732119064279,-170.629388,0.00028814,7]
[342763658,1732119064289,-151.0,0.00028814,7]
[342763659,1732119064299,-151.0,0.00028814,7]
[342763660,1732119064309,-151.0,0.00028814,7]
[342763661,1732119064319,-151.0,0.00028814,7]
[342763662,1732119064329,-151.0,0.00028814,7]
[342763663,1732119064339,-151.0,0.00028814,7]
[342763664,1732119064349,-151.0,0.00028814,7]
[342763665,1732119064359,-269.643563,0.00028814,7]
[342763666,1732119064369,-151.0,0.00028814,7]
[342763667,1732119064378,-151.0,0.00028814,7]
[342763668,1732119064388,-151.0,0.00028814,7]
[342763669,1732119064399,-470.733853,0.00028814,7]
[342763670,1732119064408,-470.733853,0.00028814,7]
[342763671,1732119064419,-470.733853,0.00028814,7]
[342763672,1732119064430,-470.733853,0.00028814,7]
[342763673,1732119064440,-470.733853,0.00028814,7]
[342763674,1732119064451,-470.733853,0.00028814,7]
[342763675,1732119064465,-470.733853,0.00028814,7]
[342763676,1732119064474,-470.733853,0.00028814,7]
[342763677,1732119064487,-470.733853,0.00028814,7]
[342763678,1732119064503,-470.733853,0.00028814,7]
[342763679,1732119064513,-470.733853,0.00028814,7]
[342763680,1732119064523,-470.733853,0.00028814,7]
[342763681,1732119064534,-470.733853,0.00028814,7]
[342763682,1732119064545,-470.733853,0.00028814,7]
[342763683,1732119064555,-470.733853,0.00028814,7]
[342763684,1732119064566,-470.733853,0.00028814,7]
[342763685,1732119064575,-470.733853,0.00028814,7]
[342763686,1732119064585,-470.733853,0.00028814,7]
[342763687,1732119064595,-470.733853,0.00028814,7]
[342763688,1732119064606,-470.733858,0.00028814,7]
[342763689,1732119064616,-151.0,0.00028814,7]
[342763690,1732119064625,-151.0,0.00028814,7]
[342763691,1732119064635,-296.827879,0.00028814,7]
[342763692,1732119064645,-500.74100346,0.00028845,5]
[342763693,1732119064655,-500.0,0.00028873,5]
[342763694,1732119064665,-503.15086075,0.00028873,5]
[342763695,1732119064675,-1032919.49559176,0.00028895,10]
[342763696,1732119064684,-295.84829259,0.00028895,3]
[342763697,1732119064694,-141034.11566749,0.00028895,10]
[342763698,1732119064855,-239745.57067395,0.00028895,10]
[342763712,1732119351250,189.029681,0.00013973,2]
[342763715,1732119480918,303.2,0.00026,60]
[342763801,1732120234717,-377.99999,0.00018,2]
[342763803,1732120234728,-781.60196509,0.00018,2]
[342763809,1732120234775,-112.42213865,0.00018,2]
[342763812,1732120234785,-300.0,0.00019989,2]
[342763813,1732120234796,-300.0,0.00019989,2]
[342763816,1732120234808,-11.13285735,0.00019989,2]
[342763818,1732120234821,-713.59446931,0.00019989,2]
[342763854,1732120238052,-215.859445,0.00019633,2]
[342763855,1732120238063,-27280.27267334,0.00019989,2]
[342763856,1732120238073,-444.34916745,0.0001999,2]
[342763857,1732120238083,-53138.83202163,0.0001999,2]
[342763858,1732120238093,-174.78,0.00020703,3]
[342763859,1732120238103,-14000.8652069,0.00020713,2]
[342763865,1732120238166,-4681.0,0.00020713,2]
[342763867,1732120238180,-37467.8127979,0.00020713,2]
[342763869,1732120238190,-198.26090023,0.00021126,2]
[342763871,1732120238202,-1056.97045915,0.00021226,2]
[342763873,1732120238212,-198.26090019,0.0002171,2]
[342763875,1732120238227,-420.0,0.00021766,2]
[342763877,1732120238236,-218.89199081,0.00021915,2]
[342763879,1732120238246,-297.50562772,0.00021915,2]
[342763881,1732120238255,-331.74278434,0.00021915,2]
[342763885,1732120238265,-500.0,0.00021917,2]
[342763887,1732120238276,-500.0,0.00021917,2]
[342763889,1732120238287,-500.0,0.00021917,2]
[342763891,1732120238297,-500.0,0.00021917,2]
[342763893,1732120238306,-500.0,0.00021917,2]
[342763894,1732120238317,-500.0,0.00021917,2]
[342763896,1732120238327,-500.0,0.00021917,2]
[342763898,1732120238336,-500.0,0.00021917,2]
[342763900,1732120238346,-500.0,0.00021917,2]
[342763901,1732120238354,-200.0,0.00021917,2]
[342763902,1732120238364,-500.0,0.00021917,2]
[342763903,1732120238373,-348.08240968,0.00021917,2]
[342763904,1732120238382,-500.0,0.00021917,2]
[342763905,1732120238392,-500.0,0.00021917,2]
[342763906,1732120238402,-500.0,0.00021917,2]
[342763907,1732120238411,-500.0,0.00021917,2]
[342763908,1732120238421,-500.0,0.00021917,2]
[342763909,1732120238430,-500.0,0.00021917,2]
[342763910,1732120238439,-500.0,0.00021917,2]
[342763911,1732120238448,-500.0,0.00021917,2]
[342763912,1732120238458,-500.0,0.00021917,2]
[342763913,1732120238470,-500.0,0.00021917,2]
[342763914,1732120238480,-500.0,0.00021917,2]
[342763915,1732120238491,-500.0,0.00021917,2]
[342763916,1732120238502,-500.0,0.00021917,2]
[342763917,1732120238512,-500.0,0.00021917,2]
[342763918,1732120238522,-500.0,0.00021917,2]
[342763919,1732120238532,-500.0,0.00021917,2]
[342763920,1732120238542,-500.0,0.00021917,2]
[342763921,1732120238552,-500.0,0.00021917,2]
[342763922,1732120238562,-500.0,0.00021917,2]
[342763923,1732120238572,-500.0,0.00021917,2]
[342763924,1732120238582,-500.0,0.00021917,2]
[342763925,1732120238592,-500.0,0.00021917,2]
[342763926,1732120238601,-500.0,0.00021917,2]
[342763927,1732120238611,-500.0,0.00021917,2]
[342763928,1732120238727,-500.0,0.00021917,2]
[342763929,1732120238742,-500.0,0.00021917,2]